[Event "Early-Titled-Tuesday-Blitz-April-23-2024"]
[Site "Chess.com"]
[Date "2024.04.23"]
[Round "10"]
[White "lucasran"]
[Black "jinxy2009"]
[Result "1-0"]
[WhiteElo "2583"]
[BlackElo "2306"]
[TimeControl "180+1"]
[EndTime "10:01:35 PDT"]
[Termination "lucasran won by resignation"]

1. e4 {[%clk 0:03:00.9]} 1... c5 {[%clk 0:02:57.6]} 2. Nf3 {[%clk 0:02:23.9]}
2... Nc6 {[%clk 0:02:55.7]} 3. Bb5 {[%clk 0:02:22.2]} 3... e6 {[%clk 0:02:52.8]}
4. O-O {[%clk 0:02:20.9]} 4... Nge7 {[%clk 0:02:51.2]} 5. Re1 {[%clk 0:02:20.1]}
5... a6 {[%clk 0:02:47.5]} 6. Bf1 {[%clk 0:02:13.8]} 6... Ng6 {[%clk 0:02:41.7]}
7. c3 {[%clk 0:02:02.2]} 7... Be7 {[%clk 0:02:36.2]} 8. d4 {[%clk 0:02:01.6]}
8... cxd4 {[%clk 0:02:36.4]} 9. cxd4 {[%clk 0:02:01.5]} 9... d5 {[%clk
0:02:36.7]} 10. e5 {[%clk 0:01:47.1]} 10... O-O {[%clk 0:02:36.4]} 11. Nc3
{[%clk 0:01:41.1]} 11... f6 {[%clk 0:02:35.8]} 12. exf6 {[%clk 0:01:35.6]} 12...
Bxf6 {[%clk 0:02:34.5]} 13. Be3 {[%clk 0:01:33.4]} 13... Nge7 {[%clk 0:02:11.3]}
14. Bd3 {[%clk 0:01:16.1]} 14... Nf5 {[%clk 0:02:10.6]} 15. Bxf5 {[%clk
0:01:15.5]} 15... exf5 {[%clk 0:02:11.5]} 16. Qd2 {[%clk 0:01:12.7]} 16... h6
{[%clk 0:01:58.4]} 17. Bf4 {[%clk 0:01:11.2]} 17... Ne7 {[%clk 0:01:40.2]} 18.
Be5 {[%clk 0:01:08.8]} 18... Bd7 {[%clk 0:01:33.7]} 19. Bxf6 {[%clk 0:01:07.8]}
19... Rxf6 {[%clk 0:01:33.5]} 20. Rxe7 {[%clk 0:01:04.7]} 20... Qxe7 {[%clk
0:01:30.5]} 21. Nxd5 {[%clk 0:01:05]} 21... Qd6 {[%clk 0:01:30.9]} 22. Nxf6+
{[%clk 0:01:04.7]} 22... Qxf6 {[%clk 0:01:31.8]} 23. Re1 {[%clk 0:01:00.2]}
23... Bc6 {[%clk 0:01:29.6]} 24. Ne5 {[%clk 0:01:00.3]} 24... Rd8 {[%clk
0:01:28.1]} 25. Qc3 {[%clk 0:00:56.9]} 25... Bd5 {[%clk 0:01:24.6]} 26. a3
{[%clk 0:00:52.5]} 26... Kh7 {[%clk 0:01:22.1]} 27. Qg3 {[%clk 0:00:40.5]} 27...
Bf7 {[%clk 0:01:13.6]} 28. Qf4 {[%clk 0:00:37]} 28... Bd5 {[%clk 0:01:03.1]} 29.
h3 {[%clk 0:00:35.9]} 29... Be4 {[%clk 0:01:02.5]} 30. f3 {[%clk 0:00:32.7]}
30... Bd5 {[%clk 0:00:56.5]} 31. Nd3 {[%clk 0:00:26.3]} 31... Bc4 {[%clk
0:00:49.2]} 32. Ne5 {[%clk 0:00:26.3]} 32... Bd5 {[%clk 0:00:49]} 33. Rc1 {[%clk
0:00:25.3]} 33... Bc6 {[%clk 0:00:34]} 34. Nxc6 {[%clk 0:00:18.3]} 34... bxc6
{[%clk 0:00:34.9]} 35. Qe5 {[%clk 0:00:18.5]} 35... Rxd4 {[%clk 0:00:30.8]} 36.
Qxf6 {[%clk 0:00:18.1]} 36... gxf6 {[%clk 0:00:31.7]} 37. Rxc6 {[%clk 0:00:18]}
37... Rd1+ {[%clk 0:00:27.1]} 38. Kh2 {[%clk 0:00:17.6]} 38... Rd2 {[%clk
0:00:24.6]} 39. Rxf6 {[%clk 0:00:15.5]} 39... Rxb2 {[%clk 0:00:24.5]} 40. Rxf5
{[%clk 0:00:14.3]} 40... Kg6 {[%clk 0:00:20.7]} 41. Ra5 {[%clk 0:00:13.9]} 41...
Rb6 {[%clk 0:00:20.8]} 42. g4 {[%clk 0:00:14.3]} 42... Rc6 {[%clk 0:00:19.4]}
43. Kg3 {[%clk 0:00:14.7]} 43... Rb6 {[%clk 0:00:20]} 44. h4 {[%clk 0:00:15.2]}
44... Rc6 {[%clk 0:00:20.5]} 45. h5+ {[%clk 0:00:15.6]} 45... Kf6 {[%clk
0:00:21.1]} 46. f4 {[%clk 0:00:15]} 46... Rb6 {[%clk 0:00:21.3]} 47. Kh4 {[%clk
0:00:14.6]} 47... Kg7 {[%clk 0:00:20.5]} 48. g5 {[%clk 0:00:14.5]} 48... hxg5+
{[%clk 0:00:20.5]} 49. fxg5 {[%clk 0:00:15.4]} 49... Rc6 {[%clk 0:00:20.7]} 50.
Kg4 {[%clk 0:00:15.7]} 50... Rc4+ {[%clk 0:00:20.5]} 51. Kf5 {[%clk 0:00:15.3]}
51... Rc6 {[%clk 0:00:20.8]} 52. Rd5 {[%clk 0:00:10.4]} 52... Rb6 {[%clk
0:00:20.4]} 53. Rd7+ {[%clk 0:00:10]} 53... Kf8 {[%clk 0:00:20.5]} 54. h6 {[%clk
0:00:09.6]} 54... Kg8 {[%clk 0:00:20.3]} 55. g6 {[%clk 0:00:07.3]} 55... Rb8
{[%clk 0:00:17.9]} 56. Kf6 {[%clk 0:00:07.3]} 56... Rb6+ {[%clk 0:00:17.8]} 57.
Kf5 {[%clk 0:00:07.4]} 57... Rb5+ {[%clk 0:00:17.6]} 58. Ke6 {[%clk 0:00:07.9]}
58... Rb6+ {[%clk 0:00:17.8]} 59. Rd6 {[%clk 0:00:08.5]} 59... Rb8 {[%clk
0:00:17.7]} 60. Kf6 {[%clk 0:00:09]} 60... Rf8+ {[%clk 0:00:17.1]} 61. Kg5
{[%clk 0:00:09.3]} 61... Ra8 {[%clk 0:00:17.6]} 62. h7+ {[%clk 0:00:09.4]} 62...
Kg7 {[%clk 0:00:17.7]} 63. Rd7+ {[%clk 0:00:09.5]} 63... Kh8 {[%clk 0:00:17.8]}
64. Kh6 {[%clk 0:00:09.9]} 1-0

[Event "Early-Titled-Tuesday-Blitz-April-23-2024"]
[Site "Chess.com"]
[Date "2024.04.23"]
[Round "10"]
[White "dropstoneDP"]
[Black "maciek_92"]
[Result "1-0"]
[WhiteElo "3021"]
[BlackElo "2848"]
[TimeControl "180+1"]
[EndTime "10:01:41 PDT"]
[Termination "dropstoneDP won by resignation"]

1. e4 {[%clk 0:03:00.9]} 1... c5 {[%clk 0:03:00.4]} 2. Nf3 {[%clk 0:03:01.2]}
2... e6 {[%clk 0:03:01.1]} 3. d4 {[%clk 0:03:01.3]} 3... cxd4 {[%clk 0:03:02]}
4. Nxd4 {[%clk 0:03:01.9]} 4... Nc6 {[%clk 0:03:02.7]} 5. Nc3 {[%clk 0:03:02.1]}
5... a6 {[%clk 0:03:03.4]} 6. Be2 {[%clk 0:02:57.6]} 6... Qc7 {[%clk 0:03:02.1]}
7. Nxc6 {[%clk 0:02:58.2]} 7... bxc6 {[%clk 0:03:01.3]} 8. Qd4 {[%clk
0:02:58.7]} 8... d5 {[%clk 0:03:01.3]} 9. exd5 {[%clk 0:02:57.7]} 9... cxd5
{[%clk 0:02:59.8]} 10. Bf4 {[%clk 0:02:58.2]} 10... Qc5 {[%clk 0:02:58]} 11.
Qxc5 {[%clk 0:02:57.4]} 11... Bxc5 {[%clk 0:02:57.9]} 12. Na4 {[%clk 0:02:58.3]}
12... Ba7 {[%clk 0:02:56.8]} 13. c4 {[%clk 0:02:58.6]} 13... Ne7 {[%clk
0:02:55.1]} 14. Bf3 {[%clk 0:02:51.9]} 14... Bb7 {[%clk 0:02:46]} 15. O-O {[%clk
0:02:46.6]} 15... Bc6 {[%clk 0:02:34.4]} 16. b3 {[%clk 0:02:32.8]} 16... dxc4
{[%clk 0:02:25.4]} 17. Bxc6+ {[%clk 0:02:32]} 17... Nxc6 {[%clk 0:02:26.3]} 18.
Rac1 {[%clk 0:02:24.7]} 18... Nd4 {[%clk 0:02:19]} 19. Rxc4 {[%clk 0:02:24.6]}
19... Ne2+ {[%clk 0:02:17.6]} 20. Kh1 {[%clk 0:02:25.1]} 20... Nxf4 {[%clk
0:02:18.3]} 21. Rxf4 {[%clk 0:02:25.7]} 21... Ke7 {[%clk 0:02:15.9]} 22. Nb2
{[%clk 0:02:18.3]} 22... Rhd8 {[%clk 0:02:13.9]} 23. Nc4 {[%clk 0:02:13.6]}
23... Rd5 {[%clk 0:02:10.9]} 24. g3 {[%clk 0:02:09.6]} 24... Rad8 {[%clk
0:02:09.5]} 25. Kg2 {[%clk 0:02:02.1]} 25... h5 {[%clk 0:02:07.6]} 26. h4 {[%clk
0:02:01.3]} 26... g6 {[%clk 0:02:00.9]} 27. Rc1 {[%clk 0:01:56.4]} 27... R8d7
{[%clk 0:01:50.2]} 28. Re4 {[%clk 0:01:54.3]} 28... Kf6 {[%clk 0:01:46.1]} 29.
Re2 {[%clk 0:01:54]} 29... Bd4 {[%clk 0:01:17]} 30. Rcc2 {[%clk 0:01:53.8]}
30... e5 {[%clk 0:01:14.8]} 31. Ne3 {[%clk 0:01:45.2]} 31... R5d6 {[%clk
0:01:03]} 32. Rc8 {[%clk 0:01:41]} 32... e4 {[%clk 0:00:46.2]} 33. Nc4 {[%clk
0:01:35.1]} 33... Re6 {[%clk 0:00:46.2]} 34. Rd2 {[%clk 0:01:27]} 34... Ke7
{[%clk 0:00:46.5]} 35. Ra8 {[%clk 0:01:09.7]} 35... f5 {[%clk 0:00:45.3]} 36.
Rc2 {[%clk 0:01:04.8]} 36... Rc6 {[%clk 0:00:33.3]} 37. Re2 {[%clk 0:01:00.8]}
37... Ke6 {[%clk 0:00:28.6]} 38. f3 {[%clk 0:00:59.9]} 38... e3 {[%clk
0:00:18.5]} 39. Nxe3 {[%clk 0:00:57.6]} 39... Bxe3 {[%clk 0:00:19.1]} 40. Rxe3+
{[%clk 0:00:58.5]} 40... Kf6 {[%clk 0:00:19]} 41. Re2 {[%clk 0:00:57.2]} 41...
f4 {[%clk 0:00:19.2]} 42. gxf4 {[%clk 0:00:57.1]} 42... Rd4 {[%clk 0:00:17.9]}
43. Rae8 {[%clk 0:00:48.4]} 43... Kf7 {[%clk 0:00:12.6]} 44. R8e7+ {[%clk
0:00:47.9]} 44... Kf6 {[%clk 0:00:12.3]} 45. Kg3 {[%clk 0:00:45.9]} 45... Rd1
{[%clk 0:00:11.4]} 46. Re1 {[%clk 0:00:32.7]} 46... Rxe1 {[%clk 0:00:09.8]} 47.
Rxe1 {[%clk 0:00:33.6]} 47... Rc2 {[%clk 0:00:10.3]} 48. a4 {[%clk 0:00:27.2]}
48... Rb2 {[%clk 0:00:10.7]} 49. Re3 {[%clk 0:00:26]} 49... Kf5 {[%clk
0:00:07.2]} 50. Rc3 {[%clk 0:00:24.4]} 50... Kf6 {[%clk 0:00:03.7]} 51. Rc6+
{[%clk 0:00:24.5]} 51... Kf5 {[%clk 0:00:04.4]} 52. Rb6 {[%clk 0:00:23.7]} 52...
a5 {[%clk 0:00:04.7]} 53. Rb5+ {[%clk 0:00:22.6]} 53... Kf6 {[%clk 0:00:05.2]}
54. f5 {[%clk 0:00:23.2]} 54... g5 {[%clk 0:00:03.9]} 55. Rb6+ {[%clk
0:00:21.9]} 55... Kxf5 {[%clk 0:00:04]} 56. Rb5+ {[%clk 0:00:22.5]} 56... Kf6
{[%clk 0:00:04.2]} 57. Rxg5 {[%clk 0:00:21.7]} 57... Rxb3 {[%clk 0:00:04.7]} 58.
Rxh5 {[%clk 0:00:22.2]} 58... Rb4 {[%clk 0:00:01.7]} 59. Rxa5 {[%clk 0:00:22.6]}
59... Kg6 {[%clk 0:00:02.6]} 60. Ra8 {[%clk 0:00:22]} 60... Kg7 {[%clk
0:00:03.2]} 61. a5 {[%clk 0:00:21.8]} 61... Rb2 {[%clk 0:00:04.1]} 62. a6 {[%clk
0:00:22]} 62... Rb1 {[%clk 0:00:05]} 63. a7 {[%clk 0:00:22]} 63... Ra1 {[%clk
0:00:05.9]} 64. f4 {[%clk 0:00:22.5]} 64... Kh7 {[%clk 0:00:06.4]} 65. f5 {[%clk
0:00:22.8]} 65... Rg1+ {[%clk 0:00:05.9]} 66. Kf2 {[%clk 0:00:22.8]} 66... Ra1
{[%clk 0:00:06.8]} 67. f6 {[%clk 0:00:23.2]} 67... Ra2+ {[%clk 0:00:07.7]} 68.
Ke3 {[%clk 0:00:23.3]} 68... Ra1 {[%clk 0:00:08.1]} 69. f7 {[%clk 0:00:22.4]}
1-0

[Event "Early-Titled-Tuesday-Blitz-April-23-2024"]
[Site "Chess.com"]
[Date "2024.04.23"]
[Round "10"]
[White "AljoschaFeuerstack"]
[Black "bubeliang"]
[Result "0-1"]
[WhiteElo "2605"]
[BlackElo "2789"]
[TimeControl "180+1"]
[EndTime "10:01:42 PDT"]
[Termination "bubeliang won on time"]

1. e4 {[%clk 0:03:00.9]} 1... c6 {[%clk 0:02:59]} 2. d3 {[%clk 0:03:00.2]} 2...
d5 {[%clk 0:02:59.9]} 3. Nd2 {[%clk 0:03:00.6]} 3... dxe4 {[%clk 0:02:57.8]} 4.
dxe4 {[%clk 0:03:00.5]} 4... e5 {[%clk 0:02:57.7]} 5. Ngf3 {[%clk 0:03:00.4]}
5... Qc7 {[%clk 0:02:57.9]} 6. Bc4 {[%clk 0:02:57.2]} 6... h6 {[%clk 0:02:55.7]}
7. Nf1 {[%clk 0:02:49.5]} 7... Nf6 {[%clk 0:02:51.7]} 8. Ng3 {[%clk 0:02:47.7]}
8... g6 {[%clk 0:02:52]} 9. Be3 {[%clk 0:02:34.7]} 9... Ng4 {[%clk 0:02:40]} 10.
Bd2 {[%clk 0:02:34.8]} 10... Bg7 {[%clk 0:02:33.1]} 11. h3 {[%clk 0:02:15]}
11... Nf6 {[%clk 0:02:30.5]} 12. Bb4 {[%clk 0:02:15.5]} 12... c5 {[%clk
0:02:29.3]} 13. Bb5+ {[%clk 0:01:38]} 13... Nc6 {[%clk 0:02:26.7]} 14. Bxc6+
{[%clk 0:01:24.4]} 14... Qxc6 {[%clk 0:02:24.6]} 15. Nxe5 {[%clk 0:01:24.7]}
15... Qc7 {[%clk 0:01:54.9]} 16. Bc3 {[%clk 0:01:24.4]} 16... O-O {[%clk
0:01:54.8]} 17. O-O {[%clk 0:00:54.1]} 17... b6 {[%clk 0:01:54.1]} 18. Qf3
{[%clk 0:00:50.4]} 18... Bb7 {[%clk 0:01:53]} 19. Ng4 {[%clk 0:00:45.2]} 19...
Nxg4 {[%clk 0:01:19.5]} 20. hxg4 {[%clk 0:00:45]} 20... Be5 {[%clk 0:01:18.5]}
21. Bxe5 {[%clk 0:00:40.7]} 21... Qxe5 {[%clk 0:01:19.4]} 22. c3 {[%clk
0:00:41.2]} 22... Rfe8 {[%clk 0:01:13.6]} 23. Rfe1 {[%clk 0:00:41.3]} 23... Rad8
{[%clk 0:01:11.2]} 24. Rad1 {[%clk 0:00:37.5]} 24... Rxd1 {[%clk 0:01:06.9]} 25.
Qxd1 {[%clk 0:00:38.1]} 25... Qe6 {[%clk 0:01:03.6]} 26. a3 {[%clk 0:00:35]}
26... Bc8 {[%clk 0:01:04.1]} 27. f3 {[%clk 0:00:34.2]} 27... Qe5 {[%clk
0:01:03.9]} 28. Nf1 {[%clk 0:00:34.2]} 28... Ba6 {[%clk 0:01:03.4]} 29. Qd2
{[%clk 0:00:34]} 29... Kg7 {[%clk 0:01:02.5]} 30. Rd1 {[%clk 0:00:34.5]} 30...
Re6 {[%clk 0:00:55]} 31. Ne3 {[%clk 0:00:33.7]} 31... Bb7 {[%clk 0:00:51.1]} 32.
Qf2 {[%clk 0:00:30.5]} 32... Rd6 {[%clk 0:00:47.7]} 33. Rd2 {[%clk 0:00:30.5]}
33... Qe6 {[%clk 0:00:43.1]} 34. Qe2 {[%clk 0:00:27.4]} 34... Qd7 {[%clk
0:00:38]} 35. Rxd6 {[%clk 0:00:26]} 35... Qxd6 {[%clk 0:00:38.9]} 36. Qd1 {[%clk
0:00:25.3]} 36... Qf4 {[%clk 0:00:38.7]} 37. Qd2 {[%clk 0:00:25.4]} 37... Qg3
{[%clk 0:00:37.2]} 38. Nf1 {[%clk 0:00:24.7]} 38... Qe5 {[%clk 0:00:37.3]} 39.
Kf2 {[%clk 0:00:24.7]} 39... Ba6 {[%clk 0:00:37.4]} 40. Ne3 {[%clk 0:00:24.6]}
40... Qh2 {[%clk 0:00:37.3]} 41. Qd5 {[%clk 0:00:20.6]} 41... Qh4+ {[%clk
0:00:33.4]} 42. g3 {[%clk 0:00:19.7]} 42... Qh2+ {[%clk 0:00:29.2]} 43. Ng2
{[%clk 0:00:20]} 43... Qh1 {[%clk 0:00:29.8]} 44. Qe5+ {[%clk 0:00:19.6]} 44...
Kh7 {[%clk 0:00:28]} 45. Ne3 {[%clk 0:00:18.1]} 45... Qc1 {[%clk 0:00:12.3]} 46.
Ng2 {[%clk 0:00:15]} 46... Qf1+ {[%clk 0:00:09]} 47. Ke3 {[%clk 0:00:14.7]}
47... Qe2+ {[%clk 0:00:05.5]} 48. Kf4 {[%clk 0:00:14.3]} 48... Qxg2 {[%clk
0:00:06.4]} 49. Qf6 {[%clk 0:00:14.4]} 49... Qd2+ {[%clk 0:00:06.6]} 50. Ke5
{[%clk 0:00:13.2]} 50... Qg5+ {[%clk 0:00:07.2]} 51. Qxg5 {[%clk 0:00:12.7]}
51... hxg5 {[%clk 0:00:08.1]} 52. Kf6 {[%clk 0:00:13.5]} 52... Be2 {[%clk
0:00:07.7]} 53. f4 {[%clk 0:00:13.6]} 53... gxf4 {[%clk 0:00:07.6]} 54. gxf4
{[%clk 0:00:14.5]} 54... Kg8 {[%clk 0:00:07.4]} 55. g5 {[%clk 0:00:12.5]} 55...
Kf8 {[%clk 0:00:07.6]} 56. b4 {[%clk 0:00:08.4]} 56... cxb4 {[%clk 0:00:06.4]}
57. cxb4 {[%clk 0:00:08.1]} 57... Bd3 {[%clk 0:00:07]} 58. e5 {[%clk 0:00:07.1]}
58... Bf5 {[%clk 0:00:06.7]} 59. a4 {[%clk 0:00:07.1]} 59... Bd7 {[%clk
0:00:06]} 60. a5 {[%clk 0:00:07.2]} 60... bxa5 {[%clk 0:00:06.9]} 61. bxa5
{[%clk 0:00:08]} 61... a6 {[%clk 0:00:07.6]} 0-1

[Event "Early-Titled-Tuesday-Blitz-April-23-2024"]
[Site "Chess.com"]
[Date "2024.04.23"]
[Round "10"]
[White "Rakhmanov_Aleksandr"]
[Black "NikitaShnadrygin"]
[Result "1/2-1/2"]
[WhiteElo "2866"]
[BlackElo "2713"]
[TimeControl "180+1"]
[EndTime "10:01:45 PDT"]
[Termination "Game drawn - insufficient material"]

1. d4 {[%clk 0:03:00.9]} 1... d5 {[%clk 0:02:58.8]} 2. c4 {[%clk 0:03:00.2]}
2... Nc6 {[%clk 0:02:59.7]} 3. e3 {[%clk 0:02:58.5]} 3... e5 {[%clk 0:02:59.7]}
4. Nc3 {[%clk 0:02:58.5]} 4... dxc4 {[%clk 0:02:50]} 5. d5 {[%clk 0:02:56.7]}
5... Nce7 {[%clk 0:02:50.4]} 6. Bxc4 {[%clk 0:02:56.1]} 6... Ng6 {[%clk
0:02:48.7]} 7. Nf3 {[%clk 0:02:52.4]} 7... a6 {[%clk 0:02:48.1]} 8. O-O {[%clk
0:02:51.1]} 8... Bd6 {[%clk 0:02:47.9]} 9. a4 {[%clk 0:02:47.7]} 9... Nf6 {[%clk
0:02:47]} 10. Ng5 {[%clk 0:02:44.5]} 10... O-O {[%clk 0:02:41.7]} 11. b3 {[%clk
0:02:41.9]} 11... e4 {[%clk 0:02:00.4]} 12. Ncxe4 {[%clk 0:02:27.5]} 12... Be5
{[%clk 0:01:53.5]} 13. Ra2 {[%clk 0:02:07.9]} 13... Nxe4 {[%clk 0:01:13.5]} 14.
Nxe4 {[%clk 0:02:08.8]} 14... Bxh2+ {[%clk 0:01:14.2]} 15. Kxh2 {[%clk
0:02:08.1]} 15... Qh4+ {[%clk 0:01:15.1]} 16. Kg1 {[%clk 0:02:08]} 16... Qxe4
{[%clk 0:01:16]} 17. f3 {[%clk 0:01:54.2]} 17... Qh4 {[%clk 0:01:02.1]} 18. Bb2
{[%clk 0:01:48.2]} 18... Bd7 {[%clk 0:00:56.9]} 19. Qd4 {[%clk 0:01:47]} 19...
Qxd4 {[%clk 0:00:56.6]} 20. Bxd4 {[%clk 0:01:47.9]} 20... b5 {[%clk 0:00:54.3]}
21. Be2 {[%clk 0:01:31.8]} 21... Rfc8 {[%clk 0:00:40.7]} 22. Rc1 {[%clk
0:01:31.2]} 22... c6 {[%clk 0:00:28.2]} 23. axb5 {[%clk 0:01:03.5]} 23... cxb5
{[%clk 0:00:26.4]} 24. Rxc8+ {[%clk 0:01:00.2]} 24... Bxc8 {[%clk 0:00:23.4]}
25. Bxb5 {[%clk 0:00:59.9]} 25... Bb7 {[%clk 0:00:24.1]} 26. Bc4 {[%clk
0:00:56.5]} 26... Rd8 {[%clk 0:00:19.5]} 27. e4 {[%clk 0:00:56.8]} 27... Nf4
{[%clk 0:00:16.8]} 28. Kf2 {[%clk 0:00:54.5]} 28... h5 {[%clk 0:00:07.2]} 29.
Be3 {[%clk 0:00:50.1]} 29... Ng6 {[%clk 0:00:07.5]} 30. Bd4 {[%clk 0:00:45.2]}
30... Kf8 {[%clk 0:00:06.3]} 31. g3 {[%clk 0:00:44.8]} 31... f6 {[%clk
0:00:06.5]} 32. f4 {[%clk 0:00:41.8]} 32... h4 {[%clk 0:00:06.4]} 33. Ra5 {[%clk
0:00:40.8]} 33... hxg3+ {[%clk 0:00:06.4]} 34. Kxg3 {[%clk 0:00:41.3]} 34... Ne7
{[%clk 0:00:05.9]} 35. Bb6 {[%clk 0:00:37.7]} 35... Rd7 {[%clk 0:00:05.3]} 36.
f5 {[%clk 0:00:35.5]} 36... g6 {[%clk 0:00:04.1]} 37. fxg6 {[%clk 0:00:34.1]}
37... Nxg6 {[%clk 0:00:04.4]} 38. Bxa6 {[%clk 0:00:29.8]} 38... Bxa6 {[%clk
0:00:05.3]} 39. Rxa6 {[%clk 0:00:30.7]} 39... Rb7 {[%clk 0:00:05.8]} 40. b4
{[%clk 0:00:29.5]} 40... Kf7 {[%clk 0:00:05.7]} 41. Bc5 {[%clk 0:00:28.5]} 41...
Ne5 {[%clk 0:00:05.7]} 42. Ra7 {[%clk 0:00:25.6]} 42... Rxa7 {[%clk 0:00:04]}
43. Bxa7 {[%clk 0:00:26.5]} 43... Nd3 {[%clk 0:00:04.8]} 44. b5 {[%clk
0:00:26.4]} 44... f5 {[%clk 0:00:01.8]} 45. exf5 {[%clk 0:00:19.3]} 45... Kf6
{[%clk 0:00:02.3]} 46. Bd4+ {[%clk 0:00:18.6]} 46... Kxf5 {[%clk 0:00:02.4]} 47.
b6 {[%clk 0:00:19.2]} 47... Nb4 {[%clk 0:00:02.6]} 48. b7 {[%clk 0:00:19.6]}
48... Na6 {[%clk 0:00:02.9]} 49. Kf3 {[%clk 0:00:20]} 49... Nb8 {[%clk
0:00:02.6]} 50. Ke3 {[%clk 0:00:20.1]} 50... Nd7 {[%clk 0:00:03.2]} 51. Kd3
{[%clk 0:00:20.2]} 51... Kg6 {[%clk 0:00:02.4]} 52. Ke4 {[%clk 0:00:19.7]} 52...
Kf7 {[%clk 0:00:02.8]} 53. Be5 {[%clk 0:00:20.2]} 53... Nc5+ {[%clk 0:00:02.9]}
54. Kd4 {[%clk 0:00:11.3]} 54... Nxb7 {[%clk 0:00:03.8]} 55. Bc7 {[%clk
0:00:10.9]} 55... Ke8 {[%clk 0:00:03.9]} 56. Kc4 {[%clk 0:00:08]} 56... Kd7
{[%clk 0:00:04.8]} 57. Bf4 {[%clk 0:00:08.2]} 57... Nd6+ {[%clk 0:00:04.9]} 58.
Kc5 {[%clk 0:00:08.2]} 58... Nf5 {[%clk 0:00:05.1]} 59. Be5 {[%clk 0:00:07.9]}
59... Ne7 {[%clk 0:00:05.5]} 60. d6 {[%clk 0:00:06.8]} 60... Nf5 {[%clk
0:00:06]} 61. Bf4 {[%clk 0:00:07]} 61... Nxd6 {[%clk 0:00:06.9]} 1/2-1/2

[Event "Early-Titled-Tuesday-Blitz-April-23-2024"]
[Site "Chess.com"]
[Date "2024.04.23"]
[Round "10"]
[White "Oleksandr_Bortnyk"]
[Black "shimastream"]
[Result "0-1"]
[WhiteElo "3112"]
[BlackElo "3063"]
[TimeControl "180+1"]
[EndTime "10:01:47 PDT"]
[Termination "shimastream won by resignation"]

1. e4 {[%clk 0:03:00.9]} 1... b6 {[%clk 0:03:00]} 2. d4 {[%clk 0:03:01.3]} 2...
Bb7 {[%clk 0:03:00.3]} 3. Bd3 {[%clk 0:03:02.1]} 3... e6 {[%clk 0:03:01]} 4. f4
{[%clk 0:03:02.8]} 4... c5 {[%clk 0:02:54.6]} 5. c3 {[%clk 0:03:02.3]} 5... cxd4
{[%clk 0:02:52.1]} 6. cxd4 {[%clk 0:03:03.2]} 6... Nc6 {[%clk 0:02:52.6]} 7. Nf3
{[%clk 0:03:00.8]} 7... Nb4 {[%clk 0:02:52.4]} 8. Nc3 {[%clk 0:03:01.3]} 8...
Nxd3+ {[%clk 0:02:50.2]} 9. Qxd3 {[%clk 0:03:02.2]} 9... Nf6 {[%clk 0:02:49.7]}
10. O-O {[%clk 0:02:58.6]} 10... Bb4 {[%clk 0:02:49.2]} 11. e5 {[%clk
0:02:55.8]} 11... Nd5 {[%clk 0:02:48.2]} 12. Ne4 {[%clk 0:02:51.1]} 12... Be7
{[%clk 0:02:46.2]} 13. Bd2 {[%clk 0:02:41.4]} 13... h6 {[%clk 0:02:29.3]} 14.
Rac1 {[%clk 0:02:23.4]} 14... O-O {[%clk 0:02:28.2]} 15. g4 {[%clk 0:02:16.7]}
15... f5 {[%clk 0:02:21.2]} 16. exf6 {[%clk 0:01:52.4]} 16... Nxf6 {[%clk
0:02:21]} 17. Nxf6+ {[%clk 0:01:51.5]} 17... Rxf6 {[%clk 0:02:19.1]} 18. Ne5
{[%clk 0:01:41.9]} 18... Bd6 {[%clk 0:02:08.7]} 19. f5 {[%clk 0:01:26.6]} 19...
Qe7 {[%clk 0:01:11.9]} 20. Rce1 {[%clk 0:01:04.7]} 20... exf5 {[%clk 0:00:52]}
21. gxf5 {[%clk 0:00:51.1]} 21... Bxe5 {[%clk 0:00:47.1]} 22. dxe5 {[%clk
0:00:45.2]} 22... Qc5+ {[%clk 0:00:47.1]} 23. Re3 {[%clk 0:00:36.1]} 23... Qc6
{[%clk 0:00:45.7]} 24. Rff3 {[%clk 0:00:24.9]} 24... Rf7 {[%clk 0:00:39.7]} 25.
f6 {[%clk 0:00:12.6]} 25... gxf6 {[%clk 0:00:37.8]} 26. e6 {[%clk 0:00:09.7]}
26... dxe6 {[%clk 0:00:31.7]} 27. Rg3+ {[%clk 0:00:07.6]} 27... Kh8 {[%clk
0:00:31.4]} 28. Qg6 {[%clk 0:00:06.5]} 28... Qh1+ {[%clk 0:00:27]} 29. Kf2
{[%clk 0:00:07.1]} 29... Qxh2+ {[%clk 0:00:27.6]} 30. Kf1 {[%clk 0:00:05.4]}
30... Raf8 {[%clk 0:00:24.1]} 31. Rh3 {[%clk 0:00:04.5]} 31... Qf4+ {[%clk
0:00:23.4]} 32. Ref3 {[%clk 0:00:02]} 32... Qc4+ {[%clk 0:00:23.4]} 33. Ke1
{[%clk 0:00:02.7]} 33... Qe4+ {[%clk 0:00:19.6]} 34. Qxe4 {[%clk 0:00:02.6]}
34... Bxe4 {[%clk 0:00:20.5]} 35. Re3 {[%clk 0:00:03.3]} 35... Bf5 {[%clk
0:00:20.4]} 36. Rxh6+ {[%clk 0:00:03.4]} 36... Rh7 {[%clk 0:00:21.1]} 37. Rxh7+
{[%clk 0:00:02.6]} 37... Kxh7 {[%clk 0:00:22]} 38. Ra3 {[%clk 0:00:03.1]} 38...
Rf7 {[%clk 0:00:21.9]} 39. Rc3 {[%clk 0:00:02]} 39... Kg6 {[%clk 0:00:22]} 40.
Rg3+ {[%clk 0:00:02.1]} 40... Kh7 {[%clk 0:00:21.4]} 41. a4 {[%clk 0:00:01.4]}
41... e5 {[%clk 0:00:21.1]} 42. a5 {[%clk 0:00:01.8]} 42... bxa5 {[%clk
0:00:21]} 43. Bxa5 {[%clk 0:00:02.7]} 43... Bg6 {[%clk 0:00:19.9]} 44. Bc3
{[%clk 0:00:03]} 44... Re7 {[%clk 0:00:19]} 45. Re3 {[%clk 0:00:03.4]} 45... Kg7
{[%clk 0:00:19.2]} 46. b4 {[%clk 0:00:03.8]} 46... Kf7 {[%clk 0:00:19.5]} 47.
Bb2 {[%clk 0:00:03]} 47... Ke6 {[%clk 0:00:19.6]} 48. Ra3 {[%clk 0:00:03.2]}
48... Kd5 {[%clk 0:00:18.9]} 49. Ra6 {[%clk 0:00:03.3]} 49... Rf7 {[%clk
0:00:19.3]} 50. Bc1 {[%clk 0:00:03.3]} 50... Bd3 {[%clk 0:00:18.1]} 51. Ra5+
{[%clk 0:00:03.4]} 51... Ke4 {[%clk 0:00:17.8]} 52. Kf2 {[%clk 0:00:03.9]} 52...
Rc7 {[%clk 0:00:17.1]} 53. Bh6 {[%clk 0:00:03.8]} 53... f5 {[%clk 0:00:16.3]}
54. Bg5 {[%clk 0:00:03.2]} 54... Rc2+ {[%clk 0:00:14.9]} 55. Ke1 {[%clk
0:00:03.5]} 55... Rc6 {[%clk 0:00:13.9]} 56. Rxa7 {[%clk 0:00:03.3]} 56... f4
{[%clk 0:00:14.1]} 57. Re7 {[%clk 0:00:03.1]} 57... Rc1+ {[%clk 0:00:10.4]} 58.
Kd2 {[%clk 0:00:03.4]} 58... Rc2+ {[%clk 0:00:11.1]} 59. Kd1 {[%clk 0:00:04]}
59... f3 {[%clk 0:00:09.9]} 60. Bf6 {[%clk 0:00:02]} 60... f2 {[%clk 0:00:09.8]}
61. Rxe5+ {[%clk 0:00:02.5]} 61... Kf4 {[%clk 0:00:10.1]} 62. Re1 {[%clk
0:00:01.7]} 62... Rc1+ {[%clk 0:00:08.5]} 63. Kxc1 {[%clk 0:00:02.4]} 63...
fxe1=Q+ {[%clk 0:00:08.6]} 64. Kb2 {[%clk 0:00:03.3]} 64... Qd2+ {[%clk
0:00:08.5]} 65. Kb3 {[%clk 0:00:03.7]} 65... Qc2+ {[%clk 0:00:08.8]} 66. Ka3
{[%clk 0:00:04.3]} 66... Bc4 {[%clk 0:00:09.3]} 0-1